[Event "IV Elllobregat Open Chess Tmnt"]
[Site "Sant Boi de Llobregat, Spain"]
[Date "2023.12.01"]
[Round "2.27"]
[White "Anand, Batsukh"]
[Black "Khademalsharieh, Sarasadat"]
[Result "1/2-1/2"]
[TimeControl "90min/40moves + 15min/end + 30sec from move 1"]
[WhiteFideId "4903510"]
[BlackFideId "12512214"]
[WhiteElo "2369"]
[BlackElo "2481"]

1. Nf3 {[%clk 01:30:56]} {[%emt 00:00:03]} d5 {[%clk 01:30:18]} {[%emt
00:00:42]} 2. c4 {[%clk 01:31:16]} {[%emt 00:00:11]} e6 {[%clk 01:29:48]}
{[%emt 00:01:01]} 3. cxd5 {[%clk 01:31:36]} {[%emt 00:00:09]} exd5 {[%clk
01:30:12]} {[%emt 00:00:06]} 4. g3 {[%clk 01:31:59]} {[%emt 00:00:07]} Nf6
{[%clk 01:27:19]} {[%emt 00:03:23]} 5. Bg2 {[%clk 01:32:18]} {[%emt 00:00:09]}
Be7 {[%clk 01:20:37]} {[%emt 00:07:13]} 6. O-O {[%clk 01:32:37]} {[%emt
00:00:11]} O-O {[%clk 01:20:54]} {[%emt 00:00:14]} 7. d3 {[%clk 01:32:19]}
{[%emt 00:00:47]} d4 {[%clk 01:16:31]} {[%emt 00:04:53]} 8. Nbd2 {[%clk
01:23:52]} {[%emt 00:08:57]} c5 {[%clk 01:16:05]} {[%emt 00:00:56]} 9. Ne5
{[%clk 01:20:06]} {[%emt 00:04:16]} Nd5 {[%clk 01:07:02]} {[%emt 00:09:33]} 10.
Qb3 {[%clk 01:18:54]} {[%emt 00:01:42]} Nb6 {[%clk 01:06:09]} {[%emt 00:01:22]}
11. Ndc4 {[%clk 01:16:42]} {[%emt 00:02:42]} Nxc4 {[%clk 00:58:31]} {[%emt
00:08:09]} 12. Nxc4 {[%clk 01:12:43]} {[%emt 00:04:30]} Nc6 {[%clk 00:58:51]}
{[%emt 00:00:10]} 13. Bf4 {[%clk 01:11:59]} {[%emt 00:01:14]} Nb4 {[%clk
00:52:07]} {[%emt 00:07:15]} 14. Rac1 {[%clk 01:06:37]} {[%emt 00:05:51]} a5
{[%clk 00:50:20]} {[%emt 00:02:17]} 15. a4 {[%clk 00:59:20]} {[%emt 00:07:47]}
Ra7 {[%clk 00:49:01]} {[%emt 00:01:50]} 16. Rfe1 {[%clk 00:45:53]} {[%emt
00:13:56]} Be6 {[%clk 00:48:06]} {[%emt 00:01:25]} 17. Bd2 {[%clk 00:42:28]}
{[%emt 00:03:55]} Re8 {[%clk 00:41:18]} {[%emt 00:07:19]} 18. Qd1 {[%clk
00:37:02]} {[%emt 00:05:55]} Bf8 {[%clk 00:35:53]} {[%emt 00:05:55]} 19. Na3
{[%clk 00:35:52]} {[%emt 00:01:40]} Qd7 {[%clk 00:33:24]} {[%emt 00:02:59]} 20.
Nb5 {[%clk 00:32:41]} {[%emt 00:03:41]} Ra6 {[%clk 00:30:26]} {[%emt 00:03:28]}
21. Bf4 {[%clk 00:31:21]} {[%emt 00:01:49]} Rc8 {[%clk 00:30:41]} {[%emt
00:00:15]} 22. Na3 {[%clk 00:28:13]} {[%emt 00:03:39]} f6 {[%clk 00:27:44]}
{[%emt 00:03:27]} 23. Nc4 {[%clk 00:28:02]} {[%emt 00:00:40]} Re8 {[%clk
00:27:29]} {[%emt 00:00:46]} 24. Bf3 {[%clk 00:25:34]} {[%emt 00:02:57]} Bf7
{[%clk 00:23:46]} {[%emt 00:04:14]} 25. Na3 {[%clk 00:20:47]} {[%emt 00:05:18]}
h5 {[%clk 00:16:57]} {[%emt 00:07:18]} 26. h4 {[%clk 00:19:24]} {[%emt
00:01:52]} g6 {[%clk 00:16:23]} {[%emt 00:01:04]} 27. Nb5 {[%clk 00:17:55]}
{[%emt 00:02:00]} Rc8 {[%clk 00:16:25]} {[%emt 00:00:29]} 28. Be4 {[%clk
00:15:46]} {[%emt 00:02:38]} Nd5 {[%clk 00:14:28]} {[%emt 00:02:27]} 29. Qd2
{[%clk 00:13:29]} {[%emt 00:02:47]} Kh7 {[%clk 00:11:04]} {[%emt 00:03:54]} 30.
e3 {[%clk 00:11:24]} {[%emt 00:02:34]} dxe3 {[%clk 00:09:45]} {[%emt 00:01:48]}
31. Bxe3 {[%clk 00:11:49]} {[%emt 00:00:05]} Nxe3 {[%clk 00:09:57]} {[%emt
00:00:18]} 32. Qxe3 {[%clk 00:12:01]} {[%emt 00:00:18]} Bh6 {[%clk 00:06:22]}
{[%emt 00:04:05]} 33. f4 {[%clk 00:12:13]} {[%emt 00:00:17]} f5 {[%clk
00:06:29]} {[%emt 00:00:24]} 34. Bg2 {[%clk 00:10:46]} {[%emt 00:01:56]} Re6
{[%clk 00:06:37]} {[%emt 00:00:22]} 35. Qd2 {[%clk 00:08:31]} {[%emt 00:02:46]}
Bg7 {[%clk 00:05:26]} {[%emt 00:01:40]} 36. Rxe6 {[%clk 00:07:01]} {[%emt
00:02:00]} Bxe6 {[%clk 00:05:42]} {[%emt 00:00:14]} 37. Kh2 {[%clk 00:04:29]}
{[%emt 00:03:02]} b6 {[%clk 00:05:18]} {[%emt 00:00:55]} 38. Re1 {[%clk
00:03:06]} {[%emt 00:01:52]} Bc4 {[%clk 00:04:36]} {[%emt 00:01:12]} 39. Na3
{[%clk 00:00:58]} {[%emt 00:02:39]} Bxd3 {[%clk 00:04:03]} {[%emt 00:01:03]} 40.
Rd1 {[%clk 00:15:33]} {[%emt 00:00:55]} c4 {[%clk 00:18:46]} {[%emt 00:00:47]}
41. b3 {[%clk 00:08:44]} {[%emt 00:07:19]} Qe7 {[%clk 00:11:28]} {[%emt
00:07:48]} 42. Nxc4 {[%clk 00:07:58]} {[%emt 00:01:16]} Bxc4 {[%clk 00:11:33]}
{[%emt 00:00:25]} 43. bxc4 {[%clk 00:08:21]} {[%emt 00:00:07]} Rxc4 {[%clk
00:11:58]} {[%emt 00:00:04]} 44. Qd6 {[%clk 00:06:14]} {[%emt 00:02:37]} Qxd6
{[%clk 00:07:25]} {[%emt 00:05:03]} 45. Rxd6 {[%clk 00:06:40]} {[%emt
00:00:04]} Rxa4 {[%clk 00:05:31]} {[%emt 00:02:24]} 46. Rxb6 {[%clk 00:07:04]}
{[%emt 00:00:06]} Ra2 {[%clk 00:05:01]} {[%emt 00:01:00]} 47. Rb7 {[%clk
00:05:48]} {[%emt 00:01:46]} a4 {[%clk 00:04:13]} {[%emt 00:01:18]} 48. Kh3
{[%clk 00:05:11]} {[%emt 00:01:07]} a3 {[%clk 00:02:48]} {[%emt 00:01:55]} 49.
Ra7 {[%clk 00:05:18]} {[%emt 00:00:23]} Kh6 {[%clk 00:02:27]} {[%emt 00:00:51]}
50. Bd5 {[%clk 00:05:04]} {[%emt 00:00:43]} Rd2 {[%clk 00:02:52]} {[%emt
00:00:06]} 51. Bg8 {[%clk 00:04:32]} {[%emt 00:01:02]} Rd8 {[%clk 00:03:05]}
{[%emt 00:00:17]} 52. Be6 {[%clk 00:04:34]} {[%emt 00:00:27]} Bb2 {[%clk
00:02:26]} {[%emt 00:01:10]} 53. Ba2 {[%clk 00:04:12]} {[%emt 00:00:52]} Rh8
{[%clk 00:02:12]} {[%emt 00:00:44]} 54. Be6 {[%clk 00:03:00]} {[%emt 00:01:42]}
Bc1 {[%clk 00:01:16]} {[%emt 00:01:27]} 55. Rc7 {[%clk 00:01:52]} {[%emt
00:01:38]} Bd2 {[%clk 00:01:20]} {[%emt 00:00:26]} 56. Ra7 {[%clk 00:01:55]}
{[%emt 00:00:27]} Bb4 {[%clk 00:01:43]} {[%emt 00:00:07]} 57. Rb7 {[%clk
00:01:32]} {[%emt 00:00:53]} Bd6 {[%clk 00:01:40]} {[%emt 00:00:33]} 58. Rd7
{[%clk 00:01:08]} {[%emt 00:00:54]} Bf8 {[%clk 00:01:34]} {[%emt 00:00:36]} 59.
Rf7 {[%clk 00:01:17]} {[%emt 00:00:22]} Bg7 {[%clk 00:01:32]} {[%emt 00:00:31]}
60. Ra7 {[%clk 00:01:41]} {[%emt 00:00:05]} Bb2 {[%clk 00:01:58]} {[%emt
00:00:04]} 61. Ba2 {[%clk 00:01:04]} {[%emt 00:01:07]} Rh7 {[%clk 00:02:20]}
{[%emt 00:00:08]} 62. Ra6 {[%clk 00:01:10]} {[%emt 00:00:24]} Rc7 {[%clk
00:02:30]} {[%emt 00:00:19]} 63. Ra8 {[%clk 00:01:05]} {[%emt 00:00:35]} Kg7
{[%clk 00:02:17]} {[%emt 00:00:43]} 64. Rg8+ {[%clk 00:01:10]} {[%emt
00:00:26]} Kh7 {[%clk 00:02:01]} {[%emt 00:00:45]} 65. Ra8 {[%clk 00:01:32]}
{[%emt 00:00:08]} Rc2 {[%clk 00:02:09]} {[%emt 00:00:22]} 66. Ra7+ {[%clk
00:01:45]} {[%emt 00:00:17]} Kh8 {[%clk 00:02:34]} {[%emt 00:00:05]} 67. Bf7
{[%clk 00:01:15]} {[%emt 00:01:01]} Rc6 {[%clk 00:02:23]} {[%emt 00:00:41]} 68.
Bd5 {[%clk 00:01:34]} {[%emt 00:00:11]} Rd6 {[%clk 00:02:26]} {[%emt 00:00:26]}
69. Ba2 {[%clk 00:01:18]} {[%emt 00:00:46]} Rd2 {[%clk 00:02:50]} {[%emt
00:00:06]} 70. Bf7 {[%clk 00:01:23]} {[%emt 00:00:25]} Kg7 {[%clk 00:03:15]}
{[%emt 00:00:05]} 71. Bc4+ {[%clk 00:00:51]} {[%emt 00:01:02]} Kf8 {[%clk
00:03:38]} {[%emt 00:00:07]} 72. Ra6 {[%clk 00:00:52]} {[%emt 00:00:29]} Rc2
{[%clk 00:03:34]} {[%emt 00:00:33]} 73. Bb3 {[%clk 00:01:07]} {[%emt 00:00:14]}
Rc3 {[%clk 00:03:40]} {[%emt 00:00:25]} 74. Ba2 {[%clk 00:01:30]} {[%emt
00:00:07]} Bc1 {[%clk 00:03:58]} {[%emt 00:00:12]} 75. Rxg6 {[%clk 00:01:15]}
{[%emt 00:00:45]} Bxf4 {[%clk 00:04:19]} {[%emt 00:00:08]} 76. Kg2 {[%clk
00:00:39]} {[%emt 00:01:06]} Rc2+ {[%clk 00:03:51]} {[%emt 00:00:58]} 77. Kf3
{[%clk 00:01:04]} {[%emt 00:00:04]} Be5 {[%clk 00:01:07]} {[%emt 00:03:15]} 78.
Rg5 {[%clk 00:01:27]} {[%emt 00:00:07]} Ke7 {[%clk 00:00:45]} {[%emt 00:00:52]}
79. Rxf5 {[%clk 00:01:49]} {[%emt 00:00:08]} Kd6 {[%clk 00:00:55]} {[%emt
00:00:20]} 80. Bg8 {[%clk 00:02:02]} {[%emt 00:00:17]} a2 {[%clk 00:00:59]}
{[%emt 00:00:26]} 81. Bxa2 {[%clk 00:02:23]} {[%emt 00:00:09]} Rxa2 {[%clk
00:01:26]} {[%emt 00:00:03]} 82. Rxh5 {[%clk 00:02:48]} {[%emt 00:00:05]} Ra3+
{[%clk 00:01:53]} {[%emt 00:00:03]} 83. Ke4 {[%clk 00:02:54]} {[%emt 00:00:24]}
Bxg3 {[%clk 00:02:18]} {[%emt 00:00:05]} 84. Rh6+ {[%clk 00:03:12]} {[%emt
00:00:12]} Ke7 {[%clk 00:02:44]} {[%emt 00:00:04]} 85. h5 {[%clk 00:03:35]}
{[%emt 00:00:07]} Ra5 {[%clk 00:03:07]} {[%emt 00:00:07]} 86. Kf3 {[%clk
00:03:46]} {[%emt 00:00:19]} Be5 {[%clk 00:03:25]} {[%emt 00:00:12]} 87. Kg4
{[%clk 00:03:17]} {[%emt 00:00:58]} Bf6 {[%clk 00:03:50]} {[%emt 00:00:05]} 88.
Rh7+ {[%clk 00:03:33]} {[%emt 00:00:14]} Ke6 {[%clk 00:04:10]} {[%emt
00:00:09]} 89. h6 {[%clk 00:02:35]} {[%emt 00:01:28]} Ra4+ {[%clk 00:04:37]}
{[%emt 00:00:03]} 90. Kf3 {[%clk 00:02:46]} {[%emt 00:00:18]} Rh4 {[%clk
00:04:31]} {[%emt 00:00:36]} 91. Kg3 {[%clk 00:02:33]} {[%emt 00:00:43]} Kf5
{[%clk 00:04:55]} {[%emt 00:00:06]} 92. Ra7 {[%clk 00:02:30]} {[%emt 00:00:33]}
Rxh6 {[%clk 00:05:20]} {[%emt 00:00:06]} 93. Ra5+ {[%clk 00:02:34]} {[%emt
00:00:27]} Be5+ {[%clk 00:05:45]} {[%emt 00:00:05]} 94. Kf3 {[%clk 00:02:51]}
{[%emt 00:00:12]} Rh3+ {[%clk 00:06:01]} {[%emt 00:00:14]} 95. Kg2 {[%clk
00:02:54]} {[%emt 00:00:27]} Rd3 {[%clk 00:06:23]} {[%emt 00:00:09]} 96. Ra2
{[%clk 00:02:56]} {[%emt 00:00:28]} Bd4 {[%clk 00:06:35]} {[%emt 00:00:17]} 97.
Rc2 {[%clk 00:00:57]} {[%emt 00:02:29]} Kg4 {[%clk 00:06:38]} {[%emt 00:00:27]}
98. Kf1 {[%clk 00:00:34]} {[%emt 00:00:54]} Kf4 {[%clk 00:06:15]} {[%emt
00:00:53]} 99. Ke2 {[%clk 00:00:43]} {[%emt 00:00:21]} Rh3 {[%clk 00:06:39]}
{[%emt 00:00:05]} 100. Kd2 {[%clk 00:01:00]} {[%emt 00:00:13]} Ke4 {[%clk
00:07:04]} {[%emt 00:00:05]} 101. Ke2 {[%clk 00:01:17]} {[%emt 00:00:13]} Bc3
{[%clk 00:07:17]} {[%emt 00:00:17]} 102. Kd1 {[%clk 00:00:46]} {[%emt
00:01:01]} Rh1+ {[%clk 00:07:29]} {[%emt 00:00:17]} 103. Ke2 {[%clk 00:01:11]}
{[%emt 00:00:05]} Kd4 {[%clk 00:07:55]} {[%emt 00:00:05]} 104. Kf3 {[%clk
00:01:32]} {[%emt 00:00:09]} Kd3 {[%clk 00:08:08]} {[%emt 00:00:17]} 105. Re2
{[%clk 00:01:26]} {[%emt 00:00:35]} Bd4 {[%clk 00:08:30]} {[%emt 00:00:08]} 106.
Re8 {[%clk 00:01:15]} {[%emt 00:00:41]} Rh6 {[%clk 00:08:33]} {[%emt 00:00:27]}
107. Rd8 {[%clk 00:01:05]} {[%emt 00:00:41]} Rf6 {[%clk 00:08:57]} {[%emt
00:00:06]} 108. Kg4 {[%clk 00:01:14]} {[%emt 00:00:21]} Ke4 {[%clk 00:09:24]}
{[%emt 00:00:04]} 109. Rg8 {[%clk 00:01:23]} {[%emt 00:00:21]} Rf1 {[%clk
00:09:45]} {[%emt 00:00:09]} 110. Rg6 {[%clk 00:01:37]} {[%emt 00:00:15]} Be5
{[%clk 00:10:07]} {[%emt 00:00:10]} 111. Rg5 {[%clk 00:01:43]} {[%emt
00:00:24]} Bf4 {[%clk 00:10:05]} {[%emt 00:00:31]} 112. Rg6 {[%clk 00:02:08]}
{[%emt 00:00:05]} Rf2 {[%clk 00:10:21]} {[%emt 00:00:15]} 113. Re6+ {[%clk
00:02:27]} {[%emt 00:00:12]} Be5 {[%clk 00:10:23]} {[%emt 00:00:28]} 114. Rg6
{[%clk 00:02:51]} {[%emt 00:00:05]} Bf6 {[%clk 00:10:42]} {[%emt 00:00:11]} 115.
Kg3 {[%clk 00:01:53]} {[%emt 00:01:28]} Ke3 {[%clk 00:10:57]} {[%emt 00:00:15]}
116. Kg4 {[%clk 00:02:12]} {[%emt 00:00:11]} Rf4+ {[%clk 00:11:22]} {[%emt
00:00:05]} 117. Kg3 {[%clk 00:01:56]} {[%emt 00:00:46]} Bh4 {[%clk 00:11:25]}
{[%emt 00:00:28]} 118. Kg2 {[%clk 00:02:12]} {[%emt 00:00:13]} Rc4 {[%clk
00:11:34]} {[%emt 00:00:23]} 119. Re6+ {[%clk 00:02:06]} {[%emt 00:00:35]} Kf4
{[%clk 00:11:57]} {[%emt 00:00:06]} 120. Re2 {[%clk 00:02:02]} {[%emt
00:00:35]} Kg4 {[%clk 00:12:14]} {[%emt 00:00:13]} 121. Ra2 {[%clk 00:02:09]}
{[%emt 00:00:22]} 1/2-1/2

[Event "IV Elllobregat Open Chess Tmnt"]
[Site "Sant Boi de Llobregat, Spain"]
[Date "2023.12.01"]
[Round "2.28"]
[White "Seo, Jung Min"]
[Black "Nazari, Arad"]
[Result "1/2-1/2"]
[TimeControl "90min/40moves + 15min/end + 30sec from move 1"]
[WhiteFideId "1734687"]
[BlackFideId "12577324"]
[WhiteElo "2480"]
[BlackElo "2363"]

1. d4 {[%emt 00:39:54]} Nf6 {[%emt 00:00:09]} 2. c4 g6 {[%emt 00:00:01]} 3. g3
{[%emt 00:01:53]} c6 {[%emt 00:00:05]} 4. Bg2 {[%emt 00:00:04]} d5 {[%emt
00:00:04]} 5. Qa4 {[%emt 00:00:49]} Bg7 {[%emt 00:04:53]} 6. cxd5 {[%emt
00:00:33]} Nxd5 {[%emt 00:00:06]} 7. Nf3 {[%emt 00:00:03]} O-O {[%emt
00:01:28]} 8. O-O {[%emt 00:00:25]} Bg4 {[%emt 00:00:25]} 9. Rd1 {[%emt
00:05:21]} a5 {[%emt 00:06:30]} 10. Nc3 {[%emt 00:10:53]} Nb4 {[%emt 00:10:28]}
11. Rd2 {[%emt 00:02:16]} Nd7 {[%emt 00:00:28]} 12. Qd1 {[%emt 00:01:50]} Nb6
{[%emt 00:20:43]} 13. b3 {[%emt 00:11:03]} N6d5 {[%emt 00:00:37]} 14. Nxd5
{[%emt 00:00:27]} cxd5 {[%emt 00:00:51]} 15. Ne5 {[%emt 00:01:24]} Bf5 {[%emt
00:02:14]} 16. a3 {[%emt 00:00:25]} Nc6 {[%emt 00:01:02]} 17. Bb2 {[%emt
00:04:28]} Qd6 {[%emt 00:01:20]} 18. e3 {[%emt 00:03:46]} Rfc8 {[%emt
00:03:18]} 19. Nd3 {[%emt 00:02:38]} g5 {[%emt 00:00:39]} 20. Rc1 {[%emt
00:04:41]} e6 {[%emt 00:01:35]} 21. Rdc2 {[%emt 00:00:44]} Qd8 {[%emt
00:03:16]} 22. Bf1 {[%emt 00:03:34]} Ne7 {[%emt 00:00:44]} 23. g4 {[%emt
00:00:42]} Bg6 {[%emt 00:00:11]} 24. Rxc8 {[%emt 00:00:11]} Rxc8 {[%emt
00:06:40]} 25. Ne5 {[%emt 00:05:24]} Bxe5 {[%emt 00:00:15]} 26. dxe5 {[%emt
00:03:55]} Rxc1 {[%emt 00:01:21]} 27. Qxc1 {[%emt 00:00:55]} Qb6 {[%emt
00:03:48]} 28. Qc3 {[%emt 00:01:36]} Nc6 {[%emt 00:01:37]} 29. Kg2 {[%emt
00:01:52]} h6 {[%emt 00:00:37]} 30. Be2 {[%emt 00:01:18]} Bb1 {[%emt 00:00:58]}
31. h3 {[%emt 00:01:48]} Ba2 {[%emt 00:00:13]} 32. Bd1 {[%emt 00:00:08]} Bb1
{[%emt 00:00:50]} 33. Be2 {[%emt 00:00:40]} Ba2 {[%emt 00:00:08]} 34. Bd1
{[%emt 00:00:01]} Bb1 {[%emt 00:20:57]} 35. Be2 {[%emt 00:00:25]} Ba2 {[%emt
00:00:04]} 36. Bd1 {[%emt 00:00:04]} Bb1 {[%emt 00:00:45]} 37. Be2 {[%emt
00:00:14]} 1/2-1/2

[Event "IV Elllobregat Open Chess Tmnt"]
[Site "Sant Boi de Llobregat, Spain"]
[Date "2023.12.01"]
[Round "2.29"]
[White "Kamalidenova, Meruert"]
[Black "Sorensen, Hampus"]
[Result "1/2-1/2"]
[TimeControl "90min/40moves + 15min/end + 30sec from move 1"]
[WhiteFideId "13712802"]
[BlackFideId "8703884"]
[WhiteElo "2359"]
[BlackElo "2479"]

1. e4 {[%clk 01:24:48]} {[%emt 00:06:11]} e5 {[%clk 01:30:36]} {[%emt
00:00:24]} 2. Nf3 {[%clk 01:25:12]} {[%emt 00:00:06]} Nc6 {[%clk 01:30:57]}
{[%emt 00:00:09]} 3. Bb5 {[%clk 01:25:36]} {[%emt 00:00:06]} a6 {[%clk
01:31:06]} {[%emt 00:00:20]} 4. Ba4 {[%clk 01:26:01]} {[%emt 00:00:05]} Nf6
{[%clk 01:31:28]} {[%emt 00:00:08]} 5. O-O {[%clk 01:26:26]} {[%emt 00:00:06]}
Be7 {[%clk 01:31:47]} {[%emt 00:00:11]} 6. Bxc6 {[%clk 01:26:44]} {[%emt
00:00:12]} dxc6 {[%clk 01:31:37]} {[%emt 00:00:41]} 7. Re1 {[%clk 01:27:06]}
{[%emt 00:00:07]} Nd7 {[%clk 01:24:52]} {[%emt 00:07:15]} 8. d4 {[%clk
01:27:27]} {[%emt 00:00:09]} exd4 {[%clk 01:24:20]} {[%emt 00:01:03]} 9. Qxd4
{[%clk 01:27:50]} {[%emt 00:00:07]} O-O {[%clk 01:24:06]} {[%emt 00:00:43]} 10.
Bf4 {[%clk 01:27:54]} {[%emt 00:00:25]} Nc5 {[%clk 01:19:29]} {[%emt 00:05:08]}
11. Qe3 {[%clk 01:28:14]} {[%emt 00:00:10]} Bg4 {[%clk 01:12:09]} {[%emt
00:07:50]} 12. Nd4 {[%clk 01:28:06]} {[%emt 00:00:38]} Re8 {[%clk 01:05:17]}
{[%emt 00:07:22]} 13. Nc3 {[%clk 01:24:46]} {[%emt 00:03:49]} Bd6 {[%clk
00:56:30]} {[%emt 00:09:17]} 14. Bg5 {[%clk 01:16:08]} {[%emt 00:09:08]} f6
{[%clk 00:52:31]} {[%emt 00:04:29]} 15. Bh4 {[%clk 01:16:16]} {[%emt 00:00:22]}
Ne6 {[%clk 00:52:25]} {[%emt 00:00:37]} 16. Nxe6 {[%clk 01:11:07]} {[%emt
00:05:39]} Bxe6 {[%clk 00:51:34]} {[%emt 00:01:20]} 17. Rad1 {[%clk 01:11:25]}
{[%emt 00:00:12]} Qd7 {[%clk 00:49:00]} {[%emt 00:03:05]} 18. Bg3 {[%clk
01:04:29]} {[%emt 00:07:25]} Rad8 {[%clk 00:48:56]} {[%emt 00:00:34]} 19. h3
{[%clk 01:00:14]} {[%emt 00:04:45]} Qf7 {[%clk 00:46:12]} {[%emt 00:03:14]} 20.
b3 {[%clk 00:52:54]} {[%emt 00:07:50]} f5 {[%clk 00:41:59]} {[%emt 00:04:43]}
21. e5 {[%clk 00:47:40]} {[%emt 00:05:44]} Bb4 {[%clk 00:40:09]} {[%emt
00:02:19]} 22. Rxd8 {[%clk 00:45:31]} {[%emt 00:02:39]} Rxd8 {[%clk 00:40:34]}
{[%emt 00:00:05]} 23. Rd1 {[%clk 00:45:05]} {[%emt 00:00:56]} Rxd1+ {[%clk
00:39:11]} {[%emt 00:01:53]} 24. Nxd1 {[%clk 00:45:33]} {[%emt 00:00:02]} Qd7
{[%clk 00:39:12]} {[%emt 00:00:30]} 25. Nb2 {[%clk 00:44:44]} {[%emt 00:01:19]}
Qd2 {[%clk 00:34:58]} {[%emt 00:04:44]} 26. Qxd2 {[%clk 00:44:35]} {[%emt
00:00:40]} Bxd2 {[%clk 00:35:26]} {[%emt 00:00:02]} 27. Nd3 {[%clk 00:44:55]}
{[%emt 00:00:10]} b6 {[%clk 00:32:00]} {[%emt 00:03:57]} 28. Kf1 {[%clk
00:44:22]} {[%emt 00:01:02]} c5 {[%clk 00:30:14]} {[%emt 00:02:16]} 29. c4
{[%clk 00:42:47]} {[%emt 00:02:05]} Bg5 {[%clk 00:29:24]} {[%emt 00:01:20]} 30.
f4 {[%clk 00:40:51]} {[%emt 00:02:26]} Be7 {[%clk 00:29:18]} {[%emt 00:00:36]}
31. Bf2 {[%clk 00:41:08]} {[%emt 00:00:13]} Kf7 {[%clk 00:28:59]} {[%emt
00:00:49]} 32. Ke2 {[%clk 00:41:12]} {[%emt 00:00:26]} Bc8 {[%clk 00:27:01]}
{[%emt 00:02:29]} 33. Kd2 {[%clk 00:39:26]} {[%emt 00:02:16]} Bb7 {[%clk
00:27:12]} {[%emt 00:00:19]} 34. g3 {[%clk 00:39:22]} {[%emt 00:00:34]} Bg2
{[%clk 00:24:45]} {[%emt 00:02:57]} 35. h4 {[%clk 00:39:44]} {[%emt 00:00:07]}
Bb7 {[%clk 00:24:55]} {[%emt 00:00:20]} 36. Kc3 {[%clk 00:37:04]} {[%emt
00:03:10]} a5 {[%clk 00:19:56]} {[%emt 00:05:29]} 37. a3 {[%clk 00:36:53]}
{[%emt 00:00:41]} Ke6 {[%clk 00:19:22]} {[%emt 00:01:03]} 38. Ne1 {[%clk
00:36:37]} {[%emt 00:00:46]} Be4 {[%clk 00:16:54]} {[%emt 00:02:58]} 39. Nc2
{[%clk 00:36:36]} {[%emt 00:00:31]} Kd7 {[%clk 00:16:06]} {[%emt 00:01:18]} 40.
Ne3 {[%clk 00:51:12]} {[%emt 00:00:53]} Ke6 {[%clk 00:31:30]} {[%emt 00:00:07]}
41. Be1 {[%clk 00:51:14]} {[%emt 00:00:29]} Bf3 {[%clk 00:31:14]} {[%emt
00:00:46]} 42. Kb2 {[%clk 00:50:08]} {[%emt 00:01:36]} Be4 {[%clk 00:31:24]}
{[%emt 00:00:20]} 43. Nd1 {[%clk 00:50:27]} {[%emt 00:00:11]} Bf3 {[%clk
00:26:35]} {[%emt 00:05:19]} 44. Nc3 {[%clk 00:49:55]} {[%emt 00:01:03]} Bc6
{[%clk 00:27:00]} {[%emt 00:00:05]} 45. Na2 {[%clk 00:48:42]} {[%emt 00:01:43]}
Bf3 {[%clk 00:26:47]} {[%emt 00:00:43]} 46. Bd2 {[%clk 00:47:23]} {[%emt
00:01:49]} Bf8 {[%clk 00:26:25]} {[%emt 00:00:51]} 47. Be1 {[%clk 00:46:04]}
{[%emt 00:01:49]} Be7 {[%clk 00:26:47]} {[%emt 00:00:08]} 48. Nc3 {[%clk
00:46:29]} {[%emt 00:00:05]} Bc6 {[%clk 00:27:11]} {[%emt 00:00:06]} 49. Kc2
{[%clk 00:46:48]} {[%emt 00:00:11]} g6 {[%clk 00:27:15]} {[%emt 00:00:26]} 50.
Kd2 {[%clk 00:46:59]} {[%emt 00:00:19]} Bf8 {[%clk 00:27:06]} {[%emt 00:00:39]}
51. Ke3 {[%clk 00:47:14]} {[%emt 00:00:16]} Be7 {[%clk 00:27:14]} {[%emt
00:00:22]} 52. Na2 {[%clk 00:47:13]} {[%emt 00:00:31]} Bg2 {[%clk 00:24:55]}
{[%emt 00:02:49]} 53. Ke2 {[%clk 00:44:11]} {[%emt 00:03:32]} Be4 {[%clk
00:24:41]} {[%emt 00:00:43]} 54. Kd2 {[%clk 00:38:21]} {[%emt 00:06:21]} Bg2
{[%clk 00:24:40]} {[%emt 00:00:31]} 55. Kc1 {[%clk 00:37:16]} {[%emt 00:01:35]}
Bf8 {[%clk 00:24:40]} {[%emt 00:00:31]} 56. Kb2 {[%clk 00:37:36]} {[%emt
00:00:09]} Bf3 {[%clk 00:24:25]} {[%emt 00:00:45]} 57. Bd2 {[%clk 00:30:59]}
{[%emt 00:07:07]} Be7 {[%clk 00:24:45]} {[%emt 00:00:09]} 1/2-1/2